Cogmind - Beta 13 @@@ ROGUE MODE // 2024.04.18 @ 09:40:06 Player: Korywon Result: Destroyed by G-47 Trooper with Particle Gun Performance ------------- Evolutions (2) 1000 Regions Visited (3) 600 Robots Destroyed (106) 530 Value Destroyed (2842) 2842 Prototype IDs (7) 140 Alien Tech Used (0) 0 Bonus (657) 657 TOTAL SCORE: 5769 Bonus ------- High Alert Combat Kills 657 Cogmind --------- Core Integrity 0/550 Matter 279/300 Energy 160/160 System Corruption 2% Temperature Cool (9) Movement Walking (120) Location -8/Materials Parts ------- > --- POWER (1) -------- Light Nuclear Core > --- PROPULSION (5) --- Aluminum Leg Carbon-fiber Leg Carbon-fiber Leg > --- UTILITY (3) ------ Heat Sink Improved Heat Sink Small Storage Unit > --- WEAPON (2) ------- Improved Medium Laser Minigun > --- INVENTORY (8) ---- Light Deuterium Engine Small Storage Unit Recoil Stabilizer Heavy Armor Plating Heavy Laser Heavy Laser Mini Grenade Launcher Peak State ------------ > --- POWER ------------ Light Nuclear Core > --- PROPULSION ------- Aluminum Leg Aluminum Leg Aluminum Leg Carbon-fiber Leg Carbon-fiber Leg > --- UTILITY ---------- Heat Sink Improved Heat Sink Small Storage Unit > --- WEAPON ----------- Heavy EM Shotgun Improved Medium Laser > --- INVENTORY -------- Light Deuterium Engine Small Storage Unit Heavy Armor Plating Heavy Laser Heavy Laser Mini Grenade Launcher [Rating: 26] Favorites ----------- Power Light Ion Engine Engine Light Ion Engine Power Core Light Nuclear Core Propulsion Flight Unit Treads Light Treads Leg Aluminum Leg Wheel Wheel Flight Unit Flight Unit Utility Small Storage Unit Device Heat Sink Storage Small Storage Unit Protection Light Armor Plating Weapon Advanced Beam Cannon Energy Gun EM Pulse Gun Energy Cannon Advanced Beam Cannon Ballistic Gun Minigun Launcher Mini Grenade Launcher Build | -11 -10 -9 -8 ------- Run | Yrd Mat Mat Mat Slots Evolved 4 | . . 2 2 Power . | . . . . Propulsion 3 | . . 2 1 Utility 1 | . . . 1 Weapon . | . . . . Parts Attached 93 | 7 8 22 56 Power 7 | 1 1 1 4 Engine 6 | 1 1 1 3 Core 1 | . . . 1 Reactor . | . . . . Propulsion 47 | 2 1 15 29 Treads 7 | 2 . 4 1 Leg 23 | . . 2 21 Wheel 2 | . 1 1 . Hover . | . . . . Flight 15 | . . 8 7 Utility 13 | 1 1 2 9 Device 7 | . 1 1 5 Storage 2 | 1 . 1 . Processor . | . . . . Hackware . | . . . . Protection 4 | . . . 4 Artifact . | . . . . Weapon 26 | 3 5 4 14 Energy Gun 17 | 2 4 1 10 Energy Cannon 6 | . 1 3 2 Ballistic Gun 2 | 1 . . 1 Ballistic Cannon . | . . . . Launcher 1 | . . . 1 Special Weapon . | . . . . Impact Weapon . | . . . . Slashing Weapon . | . . . . Piercing Weapon . | . . . . Special Melee Weapon . | . . . . Unidentified Prototypes 5 | . . 2 3 Parts Lost 36 | . 2 5 29 Power 3 | . . 1 2 Propulsion 20 | . 1 2 17 Utility 4 | . . . 4 Weapon 9 | . 1 2 6 Highest Loss Streak 9 | . 2 2 9 To Critical Strikes 1 | . . . 1 Average Slot Usage (%) 88 | . 84 94 87 Engine 9 | . 13 11 7 Treads 6 | . 21 4 . Leg 11 | . . 2 22 Wheel 2 | . 3 6 . Flight 15 | . . 26 14 Device 8 | . 2 11 10 Storage 10 | . 14 11 9 Protection 1 | . . . 3 Energy Gun 11 | . 24 6 9 Energy Cannon 9 | . 3 15 7 Naked Turns . | . . . . Heaviest Build 31 | 12 14 19 31 Greatest Support 60 | 40 40 60 60 Greatest Overweight (x) 7 | 3 1 6 7 Average Overweight (x) . | . . . . Largest Inventory Capacity 8 | 8 8 8 8 Average Capacity 7 | 7 8 8 8 Most Carried 8 | 6 8 8 8 Average Carried 7 | 4 7 7 7 Final Capacity 8 | 8 8 8 8 Final Carried 8 | 6 8 8 8 Class Distribution -------------------- 50% | Scavenger-Mutant 48% | Mutant Dominant Class ---------------- Mutant | -10/Materials Mutant | -9/Materials Scavenger-Mutant | -8/Materials Resources | -11 -10 -9 -8 ----------- Run | Yrd Mat Mat Mat Matter Collected 1075 | 215 125 203 532 Remotely . | . . . . Salvage Created 4222 | . 378 1262 2582 Parts 218 | . 23 69 126 Haulers Intercepted 7 | . 2 2 3 Recyclers Shooed 3 | . . . 3 Parts Field Recycled . | . . . . Retrieved Matter . | . . . . Parts Self-Destructed . | . . . . Prevented . | . . . . Kills | -11 -10 -9 -8 ------- Run | Yrd Mat Mat Mat Combat Hostiles Destroyed 80 | . 10 24 46 Guns 39 | . 8 8 23 Cannons 31 | . . 10 21 AOE 8 | . 2 5 1 Classes Destroyed 11 | . 6 3 2 Worker 6 | . 1 2 3 Builder 2 | . 1 . 1 Hauler 7 | . 2 2 3 Recycler 7 | . . 3 4 Watcher 6 | . 1 3 2 Swarmer 21 | . 6 6 9 Grunt 45 | . 4 13 28 Brawler 2 | . . . 2 Duelist 3 | . . 1 2 Protector 1 | . . . 1 Sentry 8 | . . 4 4 Best Kill Streak 12 | . 6 12 8 Combat Bots Only 10 | . 6 10 8 Max Kills in Single Turn 3 | . 3 3 2 Gunslinging 1 | . . . 1 Exploded 2 | . 2 2 1 Melee . | . . . . Uniques/NPCs Destroyed . | . . . . Combat | -11 -10 -9 -8 -------- Run | Yrd Mat Mat Mat Hostile Shots Fired 471 | . 68 108 295 Missed 143 | . 15 40 88 Damage Taken 4678 | . 538 820 3320 Core 766 | . 51 162 553 Absorbed by Shields . | . . . . Redirected to Shielding 7 | . . . 7 Regen/Repaired (Parts) 61 | . . 27 34 Core Remaining (%) 79 | 100 79 59 . Volleys Fired 287 | . 40 86 161 Largest 2 | . 2 2 2 Hottest 136 | . 110 136 136 Shots Fired 528 | . 76 147 305 Gun 311 | . 64 68 179 Cannon 215 | . 12 79 124 Launcher 2 | . . . 2 Special . | . . . . Kinetic 4 | . . . 4 Thermal 419 | . 56 79 284 Explosive 2 | . . . 2 Electromagnetic 103 | . 20 68 15 Robot Hit Streak 21 | . 5 7 21 Robot Miss Streak 9 | . 4 9 6 Penetration Max . | . . . . Secondary Targets 9 | . 3 . 6 Max Gunslinging Chain 1 | . 1 . 1 Shots Hit Robots 335 | . 42 73 220 Core Hits 166 | . 21 37 108 Critical Kills 2 | . 1 1 . Critical Parts Destroyed . | . . . . Critical Strikes 11 | . 3 1 7 Burn 9 | . 2 . 7 Meltdown 2 | . 1 1 . Melee Attacks . | . . . . Impact . | . . . . Slashing . | . . . . Piercing . | . . . . Sneak Attacks . | . . . . Combat Hostiles . | . . . . Follow-up Attacks . | . . . . Damage Inflicted 6849 | . 709 1553 4587 Guns 3522 | . 469 490 2563 Cannons 2842 | . 122 822 1898 Explosions 483 | . 118 241 124 Melee . | . . . . Ramming 2 | . . . 2 Kinetic 32 | . . . 32 Thermal 5835 | . 591 1063 4181 Explosive 124 | . . . 124 Electromagnetic 856 | . 118 490 248 Impact . | . . . . Slashing . | . . . . Piercing . | . . . . Highest Corruption 2 | . . . 2 Average Corruption 1 | . . . 1 Corruption Purged . | . . . . Corruption Blocked . | . . . . Effects 4 | . . . 4 Matter Fused 1 | . . . 1 Heat Flow Errors 1 | . . . 1 Misfires 1 | . . . 1 Weapon Failures 1 | . . . 1 Overload Shots . | . . . . Overflow Damage 74 | . . 66 8 Projectiles 25 | . . 17 8 Explosions 49 | . . 49 . Melee . | . . . . Knockbacks . | . . . . Impact . | . . . . Kinetic . | . . . . Secondary . | . . . . Self-Inflicted Damage 65 | . 16 48 1 Shots 2 | . 1 1 . Rammed 1 | . . . 1 Targets Rammed 1 | . . . 1 Kicked . | . . . . Crushed . | . . . . Highest Temperature 450 | . 450 434 405 Average Temperature 129 | . 130 105 136 Received Heat Transfer 2127 | . 204 213 1710 Effects 14 | . 3 4 7 Shutdowns 5 | . 1 2 2 Energy Bleed 2 | . . 1 1 Interference 4 | . 2 . 2 Short Circuit 1 | . . . 1 Damage (minor) 2 | . . 1 1 Siege Activations . | . . . . Robots Corrupted . | . . . . Combat Hostiles . | . . . . Parts Fried 4 | . . 3 1 Impact Corruptions . | . . . . Robots Melted 3 | . 1 1 1 Combat Hostiles 2 | . . 1 1 Parts Melted 34 | . 8 5 21 Heat Transferred 11596 | . 1593 1780 8223 Parts Sabotaged . | . . . . Parts Stolen . | . . . . Parts Stripped . | . . . . Power Chain Reactions 5 | . 2 3 . Alert | -11 -10 -9 -8 ------- Run | Yrd Mat Mat Mat Peak Influence 859 | . 218 589 859 Initial 203 | . . 42 203 Average 425 | . 82 394 623 Maximum Alert Level 3 | . 1 2 3 Low Security (%) 28 | 100 97 19 . Level 1 9 | . 2 16 8 Level 2 43 | . . 64 53 Level 3 18 | . . . 38 Level 4 . | . . . . Level 5 . | . . . . High Security . | . . . . Max Security . | . . . . Squads Dispatched 17 | . 2 5 10 Investigation 2 | . 1 1 . Extermination . | . . . . Reinforcement 8 | . 1 4 3 Assault 5 | . . . 5 Garrison 2 | . . . 2 Intercept . | . . . . Searches Triggered . | . . . . Construction Impeded 3 | . . 1 2 Haulers Reinforced . | . . . . Active Scanning Responses . | . . . . Cargo Convoy Interrupts . | . . . . Stealth | -11 -10 -9 -8 --------- Run | Yrd Mat Mat Mat Distress Signals 12 | . . 6 6 Communications Jammed . | . . . . Distress Signals . | . . . . Times Spotted 141 | . 13 41 87 Peak Tracking Total 9 | . 6 9 8 Tactical Retreats 6 | . . 2 4 Traps | -11 -10 -9 -8 ------- Run | Yrd Mat Mat Mat Traps Triggered 3 | . 1 1 1 Indirectly . | . . . . Trap Hack Attempts . | . . . . Triggered . | . . . . Disarmed . | . . . . Reprogrammed . | . . . . Reused . | . . . . Traps Extracted . | . . . . Installed . | . . . . Triggered 1 | . . 1 . Machines | -11 -10 -9 -8 ---------- Run | Yrd Mat Mat Mat Machines Disabled 3 | . . . 3 Max in Single Turn 1 | . . . 1 Machines Repaired . | . . . . Machines Dismantled . | . . . . Machines Sabotaged . | . . . . Overloaded Fab Kills . | . . . . Hacking | -11 -10 -9 -8 --------- Run | Yrd Mat Mat Mat Machines Accessed 7 | . 1 1 5 Terminals 4 | . 1 . 3 Fabricators . | . . . . Repair Stations 2 | . . 1 1 Recycling Units . | . . . . Scanalyzers . | . . . . Garrison Access 1 | . . . 1 Total Hacks 21 | . 1 6 14 Successful 10 | . 1 4 5 Failed 11 | . . 2 9 Catastrophic 2 | . . . 2 Database Lockouts . | . . . . Manual 7 | . . . 7 Terminals 8 | . 1 . 7 Fabricators . | . . . . Repair Stations 10 | . . 6 4 Recycling Units . | . . . . Scanalyzers . | . . . . Garrison Access 3 | . . . 3 Terminal Hacks 2 | . 1 . 1 Prototype ID Bank 1 | . 1 . . Unreport Threat 1 | . . . 1 Fabricator Hacks . | . . . . Repair Station Hacks 8 | . . 4 4 Scan Component 4 | . . 2 2 Repair 4 | . . 2 2 Recycling Unit Hacks . | . . . . Scanalyzer . | . . . . Garrison Access Hacks . | . . . . Unauthorized Hacks . | . . . . Terminals . | . . . . Fabricators . | . . . . Repair Stations . | . . . . Recycling Units . | . . . . Scanalyzers . | . . . . Garrison Access . | . . . . Data Cores Recovered . | . . . . Used . | . . . . Hacking Detections 6 | . . 1 5 Full Trace Events 2 | . . 1 1 Feedback Events . | . . . . Feedback Blocked . | . . . . Robot Schematics Acquired . | . . . . Robots Built . | . . . . Authchips . | . . . . Time . | . . . . Total Robot Build Rating . | . . . . Part Schematics Acquired . | . . . . Parts Built . | . . . . Authchips . | . . . . Time . | . . . . Total Part Build Rating . | . . . . Parts Repaired 4 | . . 2 2 Time 129 | . . 52 77 Parts Recycled . | . . . . Recycled Matter . | . . . . Retrieved Matter . | . . . . Retrieved Components . | . . . . Parts Scanalyzed . | . . . . Part Schematics Acquired . | . . . . Parts Damaged . | . . . . Bothacking | -11 -10 -9 -8 ------------ Run | Yrd Mat Mat Mat Used RIF Installer . | . . . . Robots Hacked . | . . . . Non-combat . | . . . . Combat . | . . . . Robot Hacks Applied . | . . . . Relay Couplers Released . | . . . . Fabnet Peak Effective % . | . . . . Robots Rewired . | . . . . Allies Hacked . | . . . . Hacks Repelled . | . . . . Allies | -11 -10 -9 -8 -------- Run | Yrd Mat Mat Mat Total Allies . | . . . . Largest Group . | . . . . Highest-Rated Group . | . . . . Highest-Rated Ally . | . . . . Total Orders . | . . . . Ally Attacks . | . . . . Total Damage . | . . . . Kills . | . . . . Allies Corrupted . | . . . . Allies Melted . | . . . . Intel | -11 -10 -9 -8 ------- Run | Yrd Mat Mat Mat Robot Analysis Total . | . . . . Derelict Logs Recovered . | . . . . Drone Launches . | . . . . Drone Recoveries . | . . . . Exploration | -11 -10 -9 -8 ------------- Run | Yrd Mat Mat Mat Turns Passed 3583 | 117 735 1045 1686 Spaces Moved 1963 | 86 400 634 843 Core 76 | 59 . 10 7 Treads 269 | 27 236 6 . Legs 475 | . . . 475 Wheels 401 | . 164 237 . Hover . | . . . . Flight 742 | . . 381 361 Fastest Speed 28 | 50 95 80 28 Average Speed 117 | 117 133 104 121 Slowest Speed 400 | 200 160 350 400 Overloaded Moves . | . . . . Propulsion Burnouts . | . . . . Robots Hopped . | . . . . Cave-ins Triggered . | . . . . Exploration Rate (%) 34 | 5 50 46 37 Regions Visited 3 Branch Regions . Pre-discovered Areas . | . . . . Known Exits Taken . | . . . . Unknown Exits Taken 3 | 1 1 1 . Scrap Searched . | . . . . Spaces Dug . | . . . . Terrain Destroyed 40 | . 6 16 18 Melee . | . . . . Projectile 6 | . . . 6 AOE 34 | . 6 16 12 Terrain Rammed . | . . . . Walls Destroyed . | . . . . Machines Disabled . | . . . . Actions | -11 -10 -9 -8 --------- Run | Yrd Mat Mat Mat Total 2693 | 100 526 870 1197 Wait 260 | . 67 101 92 Move 1960 | 85 399 633 843 Hop . | . . . . Pick Up 47 | 7 6 15 19 Fast Attach 45 | 5 3 6 31 Attach 23 | 2 3 7 11 Detach 5 | 1 2 . 2 Swap 25 | . 2 9 14 Drop 40 | . 4 13 23 Fire 287 | . 40 86 161 Melee . | . . . . Ram 1 | . . . 1 Kick . | . . . . Crush . | . . . . Escape Stasis . | . . . . Rewire . | . . . . Trap . | . . . . Miscellaneous . | . . . . Route ------- -11/Scrapyard -10/Materials (discovered 3 exits: *Mat x2 / [*Min]) -9/Materials (discovered 3 exits: *Mat / [*Min] / [*Sto]) -8/Materials History --------- Turn | Location | Event 12 | -11/Scrapyard | Discovered new exit (range 16) 118 | -11/Scrapyard | Entered Materials 302 | -10/Materials | Build established: Mutant 560 | -10/Materials | Discovered new exit (range 8) 659 | -10/Materials | Discovered new exit (range 13) 724 | -10/Materials | Discovered new exit (range 16) 853 | -10/Materials | Entered another Materials area 853 | -9/Materials | Evolved 2 slots: Propulsion x2 1236 | -9/Materials | Destroyed 10 combat bots 1266 | -9/Materials | Discovered new exit (range 11) 1391 | -9/Materials | Discovered new exit (range 9) 1538 | -9/Materials | Build established: Scavenger-Mutant 1562 | -9/Materials | Repaired Flight Unit 1589 | -9/Materials | Repaired Flight Unit 1786 | -9/Materials | Discovered new exit (range 10) 1898 | -9/Materials | Entered another Materials area 1898 | -8/Materials | Evolved 2 slots: Propulsion x1, Utility x1 2138 | -8/Materials | Repaired Imp. Flight Unit 2166 | -8/Materials | Repaired Lgt. Armor Plating 2298 | -8/Materials | First assault squad dispatched 2445 | -8/Materials | Destroyed 8 combat bots 2449 | -8/Materials | Lost 9 parts (1p4n1u3w) 2547 | -8/Materials | Core integrity fell below 50% 2884 | -8/Materials | Lost 6 parts (4n2u) 3274 | -8/Materials | Lost 5 parts (1p1n1u2w) 3396 | -8/Materials | Garrison activated, responded to threat 3408 | -8/Materials | Core integrity fell below 20% 3469 | -8/Materials | Lost 3 parts (2n1w) 3580 | -8/Materials | Garrison activated, responded to threat 3584 | -8/Materials | Destroyed by G-47 Trooper with Particle Gun Last Messages --------------- 03566_ Connecting with Terminal... >>Alert(Purge) Purged threat record, alert level lowered. 03570_ Connecting with Terminal... 03572_ C-30 ARC bursts open, deploying its payload. 03572_ G-50 Soldier unfolds itself. 03572_ G-47 Trooper unfolds itself. 03572_ M-28 Smith unfolds itself. 03572_ Aluminum Leg destroyed. 03575_ K-01 Serf collects debris. 03579_ G-47 Trooper destroyed. 03579_ K-01 Serf collects debris. 03580_ G-50 Soldier calls for garrison reinforcements. 03580_ ALERT: Activating Garrison Access M001. 03581_ G-47 Trooper emerges from the garrison. 03583_ Lgt. Angular Momentum Engine melted. 03583_ G-50 Soldier destroyed. Map ----- +----------------------------------------------------+ | ????????????????# "T """ +[[ # """#???# # """ | | ????????????????# "" """ # %# """#???# # "" | | ????????????????# "" """ ### # ##### # | | ????????????????# ! !###!# + #[ | | ????????????????########"##?#%# ####=*# | | ???????????????????????#%#??#=#####+####??# %###+# | | ???????????????????????# #??# #???# #?????# ^ | | ???????????????????????# #??# #???# #?????# % | | ???????????????????????# #??# #???# #?????# % | | ???????????????????????# #??# ###?# #?????# ##+# | | ????????????????######?#!#### ###?# #????## ## | | ????????????????# #[## ### ######=%% #= | | ????????????????# =# ## == # | | ????????????????# %+%[*% *% % # | | ????????????????# # ##%!== # | | ????????????????# # ##! %* #######+## # | | ????????????????+ ?#%####+###### #### ### | | ????????????????#####??# #?# ## #??# ### | | ???????????????????###?# #?# """ ## #??# + | | ????????????????####T###k### T"[ ## ####+##### | | ????????????????# ^ = ag=# % * ## # | | ????????????????# =%gm![#! = [## # | | ????????????????# !== % # % ## # ] | | ?????????######## t^ ######### # | | ?????????# # ^ mT#??????# ########## | | ?????????# !!%!# " " @w###?????######????????? | | ?????????# !![ # """ ""#???????????????????? | | ?????????# ! %=# """ T"#???????????????????? | | ?????????# %=+! ""#???????????????????? | | ?????????#* [!%# ###???????????????????? | | ???????########## """ #?????????????????????? | | ???????# #### " #?????????????????????? | | ???????# """ #?????????????????????? | | ???????# ^ #?????????????????????? | | ???????# ^ #?????????????????????? | | ???????# ##### !] g #???#?????????????????? | | ???#######+####### !!g ### #?????????????????? | | ???# + !] #?????????????????? | | ???# # #?????????????????? | | ???# + #?????????????????? | | ???#] #####" "#######?????????????????? | | ???# #???#"G"#???????????????????????? | | ???# #???#"""#???????????????????????? | | ???###############???#####???????????????????????? | | | | | | | | | | | | | +----------------------------------------------------+ Best States ------------- Heat Dissipation 55 Coolant Potential 65 Energy Generation 14 Energy Capacity 275 Matter Stores 300 Matter Capacity 300 Sight Range 16 Robot Scan Range 15 Terrain Scan Density 10 Armor Coverage 600 Core Shielding 20 Evasion (%) 58 Recoil Reduction 3 Item Schematics ----------------- None Robot Schematics ------------------ None Fabricated ------------ Nothing Alien Tech Used ----------------- None Achievements -------------- None Challenges ------------ None Game ------ Seed WaveGhostSubcomponent Manual? 0 Play Time 00:36:05 Cumulative 68.4 hours Start 2024.04.18 @ 09:06:43 End 2024.04.18 @ 09:40:06 Sessions 1 Manual Loads 0 Difficulty Rogue Special Mode None Game No. 60 Rogue 60 Adventurer 0 Explorer 0 Win Type - Total 0 Types 0/0/0/0/0/0/0/0/0 Lore% 16 Gallery% 28 Achievement% 24 Wizard Run 0 Options --------- Layout 2 ASCII 0 Keyboard 0 Movement Arrows Keybinds 0 Fullscreen 1 Font 16/Cog Map View 50x49 Zoom Use 0% Tactical HUD 1 Map Filters NONE Filters NONE Steam SD RUN: f0fe1566-57f0-45d9-af2b-b24bdd05b6dc